[Event "2nd Doppelbauer Kiel GM 2022"]
[Site "Kiel"]
[Date "2022.06.30"]
[Round "2.5"]
[White "Bogner, Sebastian"]
[Black "Horvath, Dominik"]
[Result "1-0"]
[ECO "E34"]
[WhiteElo "2553"]
[BlackElo "2482"]
[Annotator "TA"]
[PlyCount "75"]
[EventDate "2022.06.30"]
[EventType "tourn"]
[EventCountry "GER"]
[SourceTitle "playchess.com"]
[Source "ChessBase"]
[SourceQuality "1"]
[TimeControl "40/5400+30:1800+30"]

{[%evp 12,75,10,0,0,0,0,0,12,15,16,20,21,10,12,15,7,-15,37,33,10,0,2,-9,25,22,27,13,29,27,45,59,59,51,62,65,64,56,71,73,127,95,152,154,165,161,185,187,179,183,250,246,263,263,407,407,407,407,407,407,407,407,407,393,379,317]} 1. d4 {[%emt 0:00:03]} Nf6 {[%emt 0:00:09]} 2. c4 {[%emt 0:00:16]} e6 {[%emt 0:00:06]} 3. Nc3 {[%emt 0:00:16]} Bb4 {[%emt 0:00:16]} 4. Qc2 {[%emt 0:00:10]} d5 {[%emt 0:00:06]} 5. cxd5 {[%emt 0:00:17]} Qxd5 {[%emt 0:00:09]} 6. Nf3 {[%emt 0:00:42]} Qf5 {[%emt 0:00:17]} 7. Qb3 {[%emt 0:00:36] Nowadays more popular than 7.Qxf5.} Nc6 {[%emt 0:00:09] E34: Nimzo-Indian: Classical: 4...d5.} 8. Bd2 {[%emt 0:00:46]} O-O {[%emt 0:00:30]} 9. h3 {[%emt 0:00:59]} a5 {[%emt 0:00:17][%cal Oa5a4] The position is equal.} 10. g4 {[%emt 0:00:49]} Qg6 {[%emt 0:00:06]} 11. a3 {[%emt 0:00:53]} a4 {[%emt 0:05:33]} 12. Qd1 {[%emt 0:02:08]} Bxc3 {[%emt 0:00:51]} 13. Bxc3 {[%emt 0:02:13] [#]} Ne4 $146 {[%emt 0:03:35]} ({Predecessor:} 13... Nd5 14. Bd2 h6 15. Bg2 Rd8 16. Rc1 Bd7 17. Qc2 Qxc2 18. Rxc2 Be8 19. O-O f6 {½-½ (88) Sarana,A (2654)-Nihal,S (2620) Chess.com INT 2020}) 14. Rc1 {[%emt 0:00:27]} (14. Qd3 {is more complex.} f5 15. Rg1 Nxc3 16. Qxc3 fxg4 17. hxg4 e5 18. Nxe5 Nxe5 19. dxe5 Qf7 20. f3) 14... Rd8 {[%emt 0:16:00]} (14... e5 $11) 15. Qc2 $1 $14 {[%emt 0:12:54]} Nxc3 {[%emt 0:13:32]} 16. Qxg6 {[%emt 0:16:42]} hxg6 {[%emt 0:00:06]} 17. bxc3 {[%emt 0:17:57]} e5 {[%emt 0:04:58][%cal Re5d4]} 18. e3 {[%emt 0:03:10]} Be6 {[%emt 0:00:09]} 19. Be2 {[%emt 0:11:39]} Bd5 {[%emt 0:06:30]} 20. O-O {[%emt 0:00:42]} Bxf3 {[%emt 0:00:05]} 21. Bxf3 {[%emt 0:00:06]} Na5 {[%emt 0:00:05]} 22. Rc2 {[%emt 0:04:18]} c5 {[%emt 0:06:56]} 23. dxc5 {[%emt 0:08:38]} Rac8 {[%emt 0:01:04]} 24. Rb1 {[%emt 0:00:07]} Rxc5 {[%emt 0:08:33] [#]} 25. Rb4 $1 {[%emt 0:00:06]} (25. Bxb7 Rb8 26. Rcb2 Nxb7 $15) 25... b5 {[%emt 0:00:48]} ({Black should play} 25... Nc4) 26. Be2 $16 {[%emt 0:00:06]} Rb8 {[%emt 0:03:33]} (26... Nc4 $142) 27. Rcb2 {[%emt 0:02:26]} Rxc3 {[%emt 0:00:25] [#]} 28. Rxa4 {[%emt 0:02:20]} ({Of course not} 28. Bxb5 $6 Rb3 29. R2xb3 axb3 $11) ({Much less strong is} 28. Rxb5 $6 Rxb5 29. Rxb5 Rc1+ 30. Kg2 Nc4 $16) 28... Nb3 {[%emt 0:10:32]} 29. Rb4 {[%emt 0:01:36][%csl LRb3,LRb5]} Nc1 {[%emt 0:00:43]} 30. Bxb5 {[%emt 0:04:11]} Rxa3 {[%emt 0:00:13]} (30... e4 {was necessary.} 31. Kg2 (31. Rxe4 Rxa3 32. Kg2 Nd3 $16) 31... Nd3) 31. Bc4 $18 {[%emt 0:00:04]} Rxb4 {[%emt 0:06:03]} 32. Rxb4 {[%emt 0:00:03][%mdl 4096] Endgame KRB-KRN} Ra7 {[%emt 0:06:37]} (32... g5 $142 33. Rb8+ Kh7 34. Bxf7 Ra7) 33. Rb1 {[%emt 0:01:38] White is winning.} Na2 {[%emt 0:00:04]} 34. Ra1 {[%emt 0:01:02]} Rc7 {[%emt 0:06:18]} 35. Bxa2 {[%emt 0:00:21]} Ra7 {[%emt 0:00:02] [#]} 36. Bxf7+ $1 {[%emt 0:02:17]} Rxf7 {[%emt 0:03:10]} 37. Ra8+ {[%emt 0:00:05]} Kh7 {[%emt 0:00:00]} 38. Re8 {[%emt 0:00:07] Prevents Re7.  Weighted Error Value: White=0.02 (flawless) /Black=0.20 (precise)} 1-0

[Event "2nd Doppelbauer Kiel GM 2022"]
[Site "Kiel"]
[Date "2022.06.30"]
[Round "3.1"]
[White "Horvath, Dominik"]
[Black "Parvanyan, Ashot"]
[Result "1/2-1/2"]
[ECO "C10"]
[WhiteElo "2482"]
[BlackElo "2455"]
[Annotator "TA"]
[PlyCount "146"]
[EventDate "2022.06.30"]
[EventType "tourn"]
[EventCountry "GER"]
[SourceTitle "playchess.com"]
[Source "ChessBase"]
[SourceQuality "1"]
[TimeControl "40/5400+30:1800+30"]

{[%evp 9,146,40,82,85,76,59,84,31,37,-21,-20,-10,-9,-4,-11,0,0,0,0,0,0,0,0,-70,70,62,68,57,61,70,53,54,206,0,89,0,0,0,0,0,0,0,0,0,0,0,0,0,0,-20,0,0,0,-27,-22,-51,-53,-55,-41,-51,-16,-27,0,-34,-34,-30,-28,-166,-161,-158,-156,-147,-50,-43,-43,-148,-67,-67,-67,-67,-67,-67,-67,-67,-67,-67,-67,-67,-67,-67,-67,-67,-67,-67,-64,-64,-64,-64,-64,-64,-56,-64,-64,-64,-62,-64,-64,-62,-62,-70,-70,-70,-70,-70,-70,-70,-70,-70,-70,-70,-70,-70,-70,-70,-70,-70,-70,-70,-70,-70,-70,-70,-70,-70,-70,-70,-70,-70,-70]} 1. e4 {[%emt 0:00:02]} e6 {[%emt 0:00:51]} 2. d4 {[%emt 0:00:06]} d5 {[%emt 0:00:04]} 3. Nc3 {[%emt 0:00:04]} Nc6 {[%emt 0:03:43]} 4. e5 {[%emt 0:06:16]} f6 {[%emt 0:03:21]} 5. Bb5 {[%emt 0:01:30]} a6 {[%emt 0:03:09]} 6. Bxc6+ {[%emt 0:01:50] C10: French with 3 Nc3: Unusual Black 3rd moves and 3...dxe4.} bxc6 {[%emt 0:00:06]} 7. Nf3 {[%emt 0:00:04] [#]} Ne7 $146 {[%emt 0:07:37]} ({Predecessor:} 7... c5 8. O-O cxd4 9. Nxd4 c5 10. Nb3 Bb7 11. Re1 f5 12. Na4 Qc7 13. Bd2 c4 {0-1 (20) Yeletsky,I (2406)-Taboas Rodriguez,D (2357) Chess.com INT 2018}) 8. h4 {[%emt 0:00:05] White is more active.} ({White should play} 8. Na4 $16) 8... c5 $14 {[%emt 0:03:00]} 9. O-O {[%emt 0:21:21]} (9. dxc5 $14 Nc6 10. exf6) 9... cxd4 $11 {[%emt 0:17:13]} 10. Qxd4 {[%emt 0:04:48]} Nc6 {[%emt 0:01:18]} 11. Qf4 {[%emt 0:10:37]} Be7 {[%emt 0:02:14]} 12. Qg3 {[%emt 0:08:37]} fxe5 {[%emt 0:16:44]} 13. Qxg7 {[%emt 0:00:30]} (13. Nxe5 Nxe5 14. Qxe5 O-O $17) 13... Bf6 {[%emt 0:00:04]} 14. Qh6 $36 {[%emt 0:00:04][%mdl 2048] White is pushing.} Qe7 $1 {[%emt 0:00:13]} 15. Bg5 {[%emt 0:02:20]} Rf8 {[%emt 0:07:46]} 16. Nh2 {[%emt 0:05:02]} (16. Rae1 $11) 16... Qf7 {[%emt 0:05:17]} (16... Bb7 $15) 17. Bxf6 $14 {[%emt 0:02:46]} Qxf6 {[%emt 0:00:05]} 18. Qxh7 {[%emt 0:00:45]} Rh8 {[%emt 0:09:29]} 19. Qxc7 {[%emt 0:00:30]} Bd7 {[%emt 0:00:04]} 20. g3 {[%emt 0:02:34]} Ke7 $2 {[%emt 0:05:01]} (20... Rg8 $14) 21. Ng4 $2 {[%emt 0:14:33]} ({Better is} 21. Rad1 $18 {[%cal Od1d5] Threatens to win with Rxd5!} Rhc8 22. Qb6) 21... Qf5 {[%emt 0:02:52]} (21... Qg7 $1 $11 {keeps the balance.} 22. Ne3 (22. f3 Rab8 $11) 22... Rac8) 22. Ne3 {[%emt 0:05:15]} (22. f3 $1 $16) 22... Qh3 $1 $11 {[%emt 0:11:19][%cal Oh8h4] And now ...Rxh4! would win.} 23. Ncxd5+ {[%emt 0:02:36]} exd5 {[%emt 0:00:08]} 24. Nxd5+ {[%emt 0:00:02]} Kf7 $1 {[%emt 0:01:28][%cal Oh8h4]} 25. Qd6 $1 {[%emt 0:01:59] Hoping for Qf6+. Chess con chili.} Be6 {[%emt 0:04:15][%cal Oh8h4]} 26. Qc7+ $1 {[%emt 0:01:31]} (26. Qxc6 {[#]} Rxh4 $1 {[%mdl 512]} 27. Qb7+ Bd7 28. Qxd7+ Qxd7 29. f3 Qxd5 $1 30. Rad1 Qc5+ 31. Rf2 Rh1+ $3 {[%mdl 512]} 32. Kg2 Rxd1 33. g4 Rh8 34. g5 Qe3 35. g6+ Kxg6 36. Rf1 Rd2+ 37. Kg3 Qg5#) 26... Bd7 {[%emt 0:00:00][%cal Oh8h4]} 27. Qd6 $1 {[%emt 0:00:03] aiming for Qf6+.} Qe6 {[%emt 0:00:00] Against Qf6+} (27... Be6 $5 28. Qc7+ (28. Qxc6 Rxh4 29. Qb7+ Bd7) 28... Bd7 $11) 28. Qxe6+ {[%emt 0:01:30]} Bxe6 {[%emt 0:00:00]} 29. Nc7 {[%emt 0:00:33]} Rag8 {[%emt 0:00:54]} 30. Nxe6 {[%emt 0:00:20]} Kxe6 {[%emt 0:00:04]} 31. Kg2 {[%emt 0:04:21]} Rxh4 {[%emt 0:00:12]} 32. Rh1 {[%emt 0:00:03]} Rxh1 {[%emt 0:00:06]} 33. Rxh1 $15 {[%emt 0:00:03][%mdl 4096] Endgame KRN-KR} a5 {[%emt 0:01:35]} 34. c3 {[%emt 0:00:52]} Kd5 {[%emt 0:01:04]} 35. Rd1+ {[%emt 0:01:12]} Ke6 {[%emt 0:00:18]} 36. Kf3 {[%emt 0:00:11]} Rf8+ {[%emt 0:00:28]} 37. Ke3 {[%emt 0:00:25]} Ne7 {[%emt 0:00:17]} 38. Rh1 {[%emt 0:04:10]} (38. c4 $11) 38... Nd5+ $19 {[%emt 0:00:29]} 39. Ke2 {[%emt 0:00:46]} Rb8 {[%emt 0:00:14]} 40. Rh6+ {[%emt 0:00:02]} Kf5 {[%emt 0:01:49]} (40... Kf7 $17 41. Kf3 Rxb2) 41. Rh5+ $15 {[%emt 0:06:51]} Kf6 {[%emt 0:13:27]} 42. Rh6+ {[%emt 0:07:53]} (42. f4 $1 $15) 42... Kg5 {[%emt 0:02:10]} ({Black should try} 42... Kf7 $17 43. Ra6 Rxb2+ 44. Kf3 Rxa2) 43. Ra6 $1 {[%emt 0:04:24] Black is slightly better.} Rxb2+ {[%emt 0:00:07]} 44. Kd3 $1 {[%emt 0:00:01]} Rxa2 {[%emt 0:04:11] White must now prevent ...Kf5.} 45. Kc4 {[%emt 0:01:12]} Nf6 {[%emt 0:07:15] ...e4 is the strong threat.} (45... Rxf2 46. Kxd5 Rf3 47. Kxe5 Rxc3 48. Rxa5 Rxg3 49. Ra4 $11) 46. f4+ $1 {[%emt 0:00:42]} exf4 {[%emt 0:02:21]} 47. gxf4+ {[%emt 0:00:13]} Kf5 {[%emt 0:00:04] Strongly threatening ...Ne4.} ({But not} 47... Kxf4 48. Rxf6+ Ke3 49. Ra6 $11) 48. Kb3 {[%emt 0:01:05]} Ra1 {[%emt 0:00:07]} 49. Kb2 {[%emt 0:00:03]} Rg1 {[%emt 0:00:26]} 50. Rxa5+ {[%emt 0:00:04]} Kxf4 {[%emt 0:00:04]} 51. Ra8 {[%emt 0:00:39]} Ke5 {[%emt 0:00:29]} 52. Kb3 {[%emt 0:00:37]} Ne4 {[%emt 0:01:47]} 53. Ra5+ {[%emt 0:00:04]} Kd6 {[%emt 0:00:05]} 54. Kc4 {[%emt 0:00:22]} Rg4 {[%emt 0:00:34]} 55. Ra6+ {[%emt 0:00:05]} Kc7 {[%emt 0:00:04]} 56. Rh6 {[%emt 0:01:43]} Rg3 {[%emt 0:01:21]} 57. Ra6 {[%emt 0:00:40]} Kb7 {[%emt 0:01:11]} ({Don't play} 57... Rxc3+ 58. Kd4 $11) ({Of course not} 57... Nxc3 58. Ra7+ Kd8 59. Ra8+ Ke7 60. Ra7+ Kf8 61. Ra8+ Kg7 62. Ra7+ Kh8 63. Ra8+ Rg8 64. Rxg8+ Kxg8 $11) 58. Ra3 {[%emt 0:00:11]} Kb6 {[%emt 0:00:18]} 59. Kd4 {[%emt 0:16:14]} Nd6 {[%emt 0:01:42] ( -> ...Nb5+)} 60. Ra8 {[%emt 0:01:13]} Nb5+ {[%emt 0:00:39]} 61. Ke5 {[%emt 0:00:13]} Rxc3 {[%emt 0:00:22]} 62. Rh8 {[%emt 0:00:36]} Re3+ {[%emt 0:00:26]} 63. Kd5 {[%emt 0:00:09]} Rd3+ {[%emt 0:00:14]} 64. Ke4 {[%emt 0:00:15]} Rd1 {[%emt 0:00:07]} 65. Ke5 {[%emt 0:00:02]} Kc6 {[%emt 0:00:11]} 66. Rc8+ {[%emt 0:00:06]} Nc7 {[%emt 0:00:09]} 67. Ke4 {[%emt 0:00:04]} Rd7 {[%emt 0:00:15]} 68. Rh8 {[%emt 0:00:07]} Kc5 {[%emt 0:00:17]} 69. Rh1 {[%emt 0:00:06]} Nb5 {[%emt 0:00:45]} 70. Rc1+ {[%emt 0:00:05]} Kb4 {[%emt 0:00:03]} 71. Ke5 {[%emt 0:00:37]} Re7+ {[%emt 0:00:20]} 72. Kf6 {[%emt 0:00:24]} Re2 {[%emt 0:00:07]} 73. Rc8 {[%emt 0:00:14]} Nd6 {[%emt 0:00:39] Weighted Error Value: White=0.19 (very precise) /Black=0.18 (very precise)} 1/2-1/2

[Event "2nd Doppelbauer Kiel GM 2022"]
[Site "Kiel"]
[Date "2022.06.30"]
[Round "3.2"]
[White "Rosner, Jonas"]
[Black "Bogner, Sebastian"]
[Result "0-1"]
[ECO "E62"]
[WhiteElo "2469"]
[BlackElo "2553"]
[Annotator "TA"]
[PlyCount "78"]
[EventDate "2022.06.30"]
[EventType "tourn"]
[EventCountry "GER"]
[SourceTitle "playchess.com"]
[Source "ChessBase"]
[SourceQuality "1"]
[TimeControl "40/5400+30:1800+30"]

{[%evp 18,78,27,35,30,35,35,33,32,29,31,26,26,22,46,-1,30,0,45,39,29,22,32,18,25,46,33,20,58,0,0,0,0,0,0,0,0,0,0,-23,-8,-151,-150,-225,-226,-192,-166,-492,-489,-649,-629,-735,-623,-584,-575,-569,-550,-636,-619,-685,-675,-620,-590]} 1. d4 {[%emt 0:00:03]} Nf6 {[%emt 0:06:19]} 2. Nf3 {[%emt 0:00:22]} g6 {[%emt 0:00:58]} 3. c4 {[%emt 0:00:25]} Bg7 {[%emt 0:00:45]} 4. g3 {[%emt 0:01:31]} O-O {[%emt 0:00:10]} 5. Bg2 {[%emt 0:00:13]} d6 {[%emt 0:00:59]} 6. Nc3 {[%emt 0:00:33]} Nc6 {[%emt 0:00:32]} 7. O-O {[%emt 0:00:28]} e5 {[%emt 0:01:25]} 8. dxe5 {[%emt 0:01:37]} dxe5 $1 {[%emt 0:00:02] The main line 8...dxe5 scores better than 8...Nxe5.} 9. Bg5 {[%emt 0:01:29]} Be6 {[%emt 0:06:30]} 10. Nd2 {[%emt 0:02:25][%cal Oc3d5]} h6 {[%emt 0:07:40] E62: King's Indian: Fianchetto: 6...c6 and Panno Variation (6...Nc6) without ...a6.} 11. Bxf6 {[%emt 0:00:58]} Bxf6 {[%emt 0:00:05]} 12. Nde4 {[%emt 0:13:43]} Be7 {[%emt 0:04:34] White is slightly better.} 13. Qc1 {[%emt 0:03:47]} Kg7 {[%emt 0:01:57]} 14. Rd1 {[%emt 0:01:01]} Qe8 {[%emt 0:10:57]} 15. Nd5 {[%emt 0:03:35]} Bd8 {[%emt 0:03:47]} 16. e3 {[%emt 0:15:35] [#]} (16. Qc3 $14) 16... Nb8 $146 {[%emt 0:09:51]} (16... f5 $5 {[%cal Rf5e4]} 17. Nc5 Bc8 $14) ({Predecessor:} 16... b6 17. Qc3 Rc8 18. b4 f6 19. a4 Ne7 20. f4 Nxd5 21. cxd5 Bd7 22. a5 f5 23. fxe5 fxe4 24. Bxe4 {1-0 (77) Arsovic,G (2380)-Lazov,T (2335) Skopje 2018}) 17. Nc5 {[%emt 0:10:26] Pair of Knights!} Bc8 {[%emt 0:02:47] [#]} 18. Nxb7 $1 {[%emt 0:05:18]} Bxb7 {[%emt 0:01:19] [#]} 19. Nxc7 {[%emt 0:00:13]} Bxc7 {[%emt 0:00:10]} 20. Bxb7 {[%emt 0:00:04]} Nc6 {[%emt 0:00:10] ...Rb8 is the strong threat.} 21. Bxa8 {[%emt 0:00:43]} Qxa8 {[%emt 0:00:02]} 22. Qc3 {[%emt 0:01:24]} a5 {[%emt 0:05:30]} 23. Rd5 {[%emt 0:06:03]} (23. a3 $14) 23... Bd8 $11 {[%emt 0:02:08]} 24. Rad1 {[%emt 0:02:57]} Bf6 {[%emt 0:03:52]} 25. Rd6 {[%emt 0:02:28]} Rc8 {[%emt 0:05:35]} 26. c5 {[%emt 0:04:27]} h5 {[%emt 0:02:02]} 27. h4 {[%emt 0:02:47]} Rc7 {[%emt 0:08:13]} 28. b3 {[%emt 0:03:14]} Qc8 {[%emt 0:01:28][%mdl 1024] Black has compensation.} 29. Kg2 {[%emt 0:07:03] [#]} (29. Qd2 $11 {keeps the balance.}) 29... Qf5 $1 $17 {[%emt 0:04:32]} ({Inferior is} 29... Nb4 30. c6 $11) 30. Qd2 {[%emt 0:07:20]} (30. Qc4 $17 {is a better defense.}) 30... e4 $19 {[%emt 0:00:43]} 31. Rd7 {[%emt 0:00:21]} Rc8 {[%emt 0:06:01][%cal Bc7c8,Bc8d8,Bd8d6][%mdl 32]} 32. Qd5 $2 {[%emt 0:02:18]} (32. Qe2) 32... Ne5 {[%emt 0:00:15] Strongly threatening ...Qf3+. Black is clearly winning.} 33. Rd6 {[%emt 0:00:18]} Be7 {[%emt 0:01:07][%mdl 64] Skewer} 34. Rb6 {[%emt 0:01:50]} Rd8 {[%emt 0:01:15]} 35. Rd6 {[%emt 0:00:22]} Bxd6 {[%emt 0:01:00]} 36. cxd6 {[%emt 0:00:02]} Nd3 {[%emt 0:00:12]} 37. Qxf5 {[%emt 0:01:06]} gxf5 {[%emt 0:00:07]} 38. Rd2 {[%emt 0:00:25]} Rxd6 {[%emt 0:00:09] ( -> ...Ne1+)} 39. Kf1 {[%emt 0:00:21] Against Ne1} Rc6 {[%emt 0:00:07] Inhibits Rc2.  Weighted Error Value: White=0.41/Black=0.09 (flawless)} 0-1

[Event "2nd Doppelbauer Kiel GM 2022"]
[Site "Kiel"]
[Date "2022.06.30"]
[Round "3.3"]
[White "Pajeken, Jakob Leon"]
[Black "Ernst, Sipke"]
[Result "1/2-1/2"]
[ECO "A46"]
[WhiteElo "2398"]
[BlackElo "2547"]
[Annotator "TA"]
[PlyCount "67"]
[EventDate "2022.06.30"]
[EventType "tourn"]
[EventCountry "GER"]
[SourceTitle "playchess.com"]
[Source "ChessBase"]
[SourceQuality "1"]
[TimeControl "40/5400+30:1800+30"]

{[%evp 9,67,14,17,12,40,17,21,6,72,81,83,0,27,-16,-19,-2,-10,-64,-34,-61,12,-37,-24,-27,-26,-43,-49,-46,-45,-86,-72,-97,-50,-31,-47,-40,-39,-36,-45,-32,-29,-55,-15,-95,0,0,0,0,2,10,10,25,0,31,43,7,7,0,-5,-7]} 1. Nf3 {[%emt 0:00:14]} Nf6 {[%emt 0:01:28]} 2. g3 {[%emt 0:00:23]} d5 {[%emt 0:00:51]} 3. Bg2 {[%emt 0:00:12]} e6 {[%emt 0:00:56]} 4. d4 {[%emt 0:00:20]} b5 {[%emt 0:00:23]} 5. O-O {[%emt 0:00:22]} Nbd7 {[%emt 0:01:20]} 6. a4 {[%emt 0:00:18] A46: 1 d4 Nf6 2 Nf3 e6: Torre, London and Colle Systems.} c6 {[%emt 0:02:28] [#]} 7. Bf4 $146 {[%emt 0:11:36]} ({Predecessor:} 7. Ne5 Bb7 8. axb5 cxb5 9. Qd3 a6 10. Nxd7 Qxd7 11. Nd2 Be7 12. Nf3 O-O 13. Ne5 {1-0 (74) Maciejewski,K (1884)-Marciniak,L (1738) Pokrzywna 2021}) 7... Bb7 {[%emt 0:05:57]} 8. Ne5 {[%emt 0:07:39]} Nxe5 {[%emt 0:03:52]} (8... b4 $11 {keeps the balance.}) 9. dxe5 $16 {[%emt 0:00:27]} Nd7 {[%emt 0:02:14]} 10. e4 {[%emt 0:03:10]} (10. axb5 $16 cxb5 11. e4) 10... bxa4 {[%emt 0:16:38]} 11. Nc3 {[%emt 0:06:17]} (11. c4 $5) 11... a3 {[%emt 0:05:03]} 12. bxa3 {[%emt 0:00:23]} Be7 {[%emt 0:04:29]} 13. h4 {[%emt 0:09:32]} ({White should try} 13. exd5 $11 cxd5 14. Nb5) 13... O-O {[%emt 0:01:21]} (13... Ba6 $5 {[%cal Ra6f1]} 14. Re1 O-O $11) 14. Qg4 {[%emt 0:01:40]} d4 {[%emt 0:06:39]} ({Black should play} 14... Qa5 $15 15. Bh6 g6 $1 16. Bxf8 Rxf8) 15. Bh6 {[%emt 0:03:04] [#]} g6 $1 $15 {[%emt 0:00:05]} 16. Bxf8 {[%emt 0:01:57]} Bxf8 {[%emt 0:06:08]} 17. Ne2 {[%emt 0:02:47]} Nxe5 {[%emt 0:01:10]} 18. Qf4 {[%emt 0:01:57]} Bg7 {[%emt 0:03:49][%mdl 1024] Black has compensation.} 19. Rfd1 {[%emt 0:03:39]} c5 {[%emt 0:00:30]} 20. Rab1 {[%emt 0:09:23] [#]} Ba6 {[%emt 0:07:33]} (20... Bc6 $1 $17) 21. Nc1 {[%emt 0:03:18]} c4 {[%emt 0:05:31] Inhibits Nd3.} 22. Ne2 {[%emt 0:04:20]} d3 {[%emt 0:01:31]} 23. cxd3 $1 {[%emt 0:00:15]} Nxd3 {[%emt 0:07:19]} 24. Qd2 {[%emt 0:03:31]} Qc7 {[%emt 0:04:08]} 25. Qc2 {[%emt 0:02:09] And now Rxd3 would win.} Qa5 {[%emt 0:00:43]} 26. Nc1 {[%emt 0:02:09] [#]} (26. f4 $11) 26... Bd4 {[%emt 0:03:52]} ({Of course not} 26... Qxa3 $6 27. Nxd3 cxd3 28. Qc6 $11) (26... Ne1 $1 $17 {[%cal Re1c2]} 27. Qa2 Nxg2 28. Kxg2 Qa4) 27. Nxd3 $11 {[%emt 0:03:27]} cxd3 {[%emt 0:00:04]} 28. Qd2 {[%emt 0:03:05]} Bc3 {[%emt 0:01:55] A strong pair of Bishops.} 29. Qe3 {[%emt 0:00:45]} Rd8 {[%emt 0:00:57]} 30. Qxa7 {[%emt 0:01:23]} Bd4 {[%emt 0:00:06] Inhibits Qb6.} 31. Qe7 {[%emt 0:00:36]} Kg7 {[%emt 0:04:46]} 32. Qg5 {[%emt 0:03:36]} e5 $1 {[%emt 0:00:56]} 33. Bf1 {[%emt 0:03:48]} Rd6 {[%emt 0:00:30] Threatens to win with ...Rf6.} 34. Rb8 {[%emt 0:04:19] Weighted Error Value: White=0.21 (precise) /Black=0.19 (very precise)} 1/2-1/2